bitfinex-derivatives/quotes_SOLF0:USTF0_20241016
["timestamp","ask_amount","ask_price","bid_price","bid_amount"]
[1729095584591,8.145,155.12,155.02,24.76]
[1729095585083,32.905,155.12,155.04,3.2254]
[1729095585280,24.76,155.1,155.0,3.20972217]
[1729095585485,3.2256,155.03,154.99,1.3124]
[1729095585673,3.2256,155.03,155.0,3.2261]
[1729095585879,3.2256,155.03,155.01,3.24842232]
[1729095586177,3.2255,155.04,155.01,3.226]
[1729095586482,5.36,155.06,154.99,1.3124]
[1729095586483,5.36,155.06,155.0,3.27291966]
[1729095586680,5.36,155.06,154.99,1.3124]
[1729095587183,5.36,155.06,154.99,4.54274299]
[1729095587787,5.36,155.06,155.02,3.2257]
[1729095588386,3.2252,155.05,155.02,3.2257]
[1729095589684,8.5851,155.06,155.03,3.2256]
[1729095589888,2.785,155.12,155.0,24.76]
[1729095589889,5.36,155.09,155.0,24.76]
[1729095590078,5.36,155.09,155.0,26.1792]
[1729095590492,2.785,155.12,155.0,26.1792]
[1729095590785,3.2248,155.07,155.05,3.2252]
[1729095592990,3.2248,155.07,155.02,24.76]
[1729095593191,3.2248,155.07,155.04,3.2253]
[1729095593596,3.2248,155.07,155.02,24.76]
[1729095594285,3.2248,155.07,155.04,3.2253]
[1729095595183,5.36,155.09,155.0,1.4192]
[1729095595388,5.36,155.09,154.99,29.30274299]
[1729095595792,3.2257,155.03,155.0,3.2261]
[1729095596793,5.36,155.05,154.99,4.54274299]
[1729095597991,3.2256,155.04,155.0,3.2262]
[1729095598194,5.36,155.05,155.0,3.2262]
[1729095599986,3.2272,154.96,154.93,3.2276]
[1729095600212,3.2272,154.96,154.83,301.18197386]
[1729095600213,5.36,155.0,154.92,1.3776]
[1729095600496,3.2267,154.98,154.92,1.3776]
[1729095600686,5.36,155.0,154.92,1.3776]
[1729095600892,5.36,155.0,154.93,3.19635582]
[1729095601097,3.2275,154.94,154.93,3.19635582]
[1729095601292,31.2116,155.03,154.93,3.19635582]
[1729095601498,5.36,155.02,154.92,1.3776]
[1729095601697,24.76,155.01,154.92,4.59363464]
[1729095601899,15.51,154.98,154.92,1.3776]
[1729095602200,5.36,154.97,154.92,3.24829499]
[1729095602388,3.2279,154.92,154.89,3.2284]
[1729095602785,5.36,154.97,154.89,3.16796671]
[1729095602986,5.36,154.97,154.9,15.51]
[1729095603189,5.36,154.97,154.9,18.80472045]
[1729095603698,22.0577,155.04,154.96,15.51]
[1729095603699,5.36,155.04,154.96,15.51]
[1729095603896,5.36,155.07,155.0,24.77]
[1729095604199,5.36,155.07,155.0,27.96821561]
[1729095604501,5.36,155.09,155.03,24.77]
[1729095604703,5.36,155.09,155.0,33.32821561]
[1729095605397,3.225,155.06,155.03,3.2256]
[1729095605590,5.36,155.09,155.0,33.32821561]
[1729095606195,5.36,155.09,155.0,8.55821561]
[1729095606395,5.36,155.09,155.0,3.19821561]
[1729095606596,3.226,155.02,154.98,33.3565]
[1729095606795,5.36,155.05,154.98,5.36]
[1729095606995,5.36,155.05,154.98,8.63195658]
[1729095607186,8.5853,155.05,154.98,33.40195658]
[1729095607389,5.36,155.05,154.98,33.40195658]
[1729095607899,3.2256,155.04,155.0,3.2261]
[1729095608197,27.5798,155.11,155.0,3.2261]
[1729095608198,2.8098,155.11,155.0,24.77]
[1729095608402,5.36,155.1,155.04,3.2254]
[1729095609096,3.2249,155.07,155.04,3.2254]
[1729095610800,5.76,155.06,154.98,3.27195658]
[1729095610998,5.76,155.06,154.84,33.28925245]
[1729095610999,5.76,155.06,154.94,24.77]
[1729095611506,5.76,155.06,154.96,3.227]
[1729095611699,5.76,155.06,154.94,24.77]
[1729095612096,3.2261,155.01,154.98,3.2266]
[1729095612399,24.77,155.05,154.93,9.8189]
[1729095612805,2.8096,155.04,154.93,9.8189]
[1729095613803,3.2268,154.98,154.95,3.2272]
[1729095614807,5.76,155.01,154.93,9.8189]
[1729095615106,5.76,155.01,154.93,1.3207]
[1729095615304,3.2275,154.94,154.93,1.3207]
[1729095618707,3.2278,154.93,154.9,6.52292045]
[1729095618897,5.76,154.97,154.9,3.29472045]
[1729095619100,5.76,154.97,154.87,7.1425]
[1729095619502,3.2279,154.93,154.89,3.2283]
[1729095620002,3.2279,154.93,154.87,10.4055901]
[1729095620209,3.2279,154.93,154.9,3.2283]
[1729095621207,24.77,155.0,154.87,10.4055901]
[1729095621410,2.8096,155.04,154.93,24.77]
[1729095621705,7.1537,155.04,154.95,24.77]
[1729095622009,5.76,155.04,154.97,3.2267]
[1729095622210,5.76,155.04,154.96,1.4456]
[1729095622907,3.2259,155.02,154.97,3.2268]
[1729095623107,5.76,155.04,154.97,3.2268]
[1729095623411,3.2264,155.0,154.97,3.2268]
[1729095623707,5.76,155.04,154.96,1.4456]
[1729095624310,24.77,155.03,154.94,4.6398]
[1729095624706,24.77,155.03,154.92,3.2278]
[1729095624901,24.77,155.0,154.89,4.2488]
[1729095625101,5.76,154.99,154.89,4.2488]
[1729095625811,3.2278,154.93,154.9,3.2281]
[1729095626512,5.76,154.99,154.92,3.2279]
[1729095627006,3.2274,154.95,154.92,3.2279]
[1729095627212,5.76,154.99,154.9,3.2282]
[1729095627708,3.2278,154.93,154.9,3.2282]
[1729095628508,3.2276,154.94,154.91,3.2281]
[1729095630105,3.2278,154.93,154.9,3.2282]
[1729095631314,3.2278,154.93,154.91,3.2281]
[1729095631717,3.2276,154.94,154.91,3.2281]
[1729095632516,5.76,154.99,154.89,4.2488]
[1729095632718,3.2278,154.93,154.9,3.2282]
[1729095633113,3.2278,154.93,154.89,4.2488]
[1729095633310,3.2276,154.94,154.91,3.228]
[1729095635914,5.76,154.99,154.89,6.0611]
[1729095635915,3.228,154.92,154.89,6.0611]
[1729095636420,3.228,154.92,154.89,2.8327]
[1729095636619,3.228,154.92,154.9,3.2283]
[1729095638310,3.228,154.92,154.89,2.8327]
[1729095638516,3.2281,154.91,154.89,6.0611]
[1729095638821,5.76,154.99,154.89,6.0611]
[1729095640347,31.2228,155.0,154.89,6.0611]
[1729095640348,3.2269,154.97,154.91,3.2279]
[1729095640524,5.58,154.97,154.89,2.8327]
[1729095641326,3.2279,154.93,154.9,3.2282]
[1729095641527,5.58,154.97,154.89,2.8327]
[1729095641729,5.58,154.97,154.89,1.389]
[1729095642437,3.2283,154.9,154.89,1.389]
[1729095645341,3.2287,154.88,154.87,3.2630901]
[1729095645639,3.2287,154.88,154.85,1.4008]
[1729095645834,3.2287,154.88,154.85,4.63]
[1729095646134,3.2287,154.88,154.85,4.57089806]
[1729095647438,3.2287,154.88,154.86,3.2291]
[1729095647734,3.2287,154.88,154.81,1.407]
[1729095647735,3.2295,154.85,154.81,1.407]
[1729095647933,3.2295,154.85,154.82,3.2299]
[1729095648234,3.2288,154.88,154.81,1.407]
[1729095648439,3.2288,154.88,154.83,24.77]
[1729095649434,3.2288,154.88,154.85,3.2293]
[1729095649643,3.2288,154.88,154.85,6.45350147]
[1729095651240,5.58,154.91,154.85,3.22420147]
[1729095651430,3.2286,154.89,154.86,3.229]
[1729095652251,5.58,154.91,154.85,3.18911835]
[1729095652437,3.2289,154.88,154.84,15.49]
[1729095653249,15.49,154.88,154.81,6.987]
[1729095653540,15.49,154.88,154.77,3.19248458]
[1729095653843,6.4558,154.93,154.7,79.3974]
[1729095653844,21.07,154.87,154.76,16.884]
[1729095654044,5.58,154.86,154.76,20.04470174]
[1729095654240,5.58,154.86,154.81,3.23]
[1729095654633,3.2297,154.84,154.81,3.23]
[1729095654833,5.58,154.86,154.79,3.2305]
[1729095655039,5.58,154.86,154.78,15.49]
[1729095655442,5.58,154.86,154.8,3.2302]
[1729095655741,3.2299,154.83,154.8,3.2302]
[1729095656139,5.58,154.86,154.8,3.2302]
[1729095656333,3.2295,154.85,154.8,3.2302]
[1729095656538,5.58,154.86,154.8,3.2302]
[1729095656841,3.2299,154.83,154.8,3.2302]
[1729095657038,5.58,154.86,154.8,3.2302]
[1729095657240,5.58,154.86,154.79,3.2305]
[1729095658040,3.2302,154.82,154.79,3.2305]
[1729095659044,3.2304,154.81,154.78,3.2308]
[1729095659850,5.58,154.86,154.76,4.55470174]
[1729095660036,5.58,154.86,154.77,3.2309]
[1729095660535,5.58,154.86,154.76,4.55470174]
[1729095660742,3.2303,154.81,154.78,3.2308]
[1729095667053,3.2304,154.8,154.77,3.2309]
[1729095667652,3.2309,154.78,154.76,7.78580174]
[1729095667854,3.2309,154.78,154.76,4.55470174]
[1729095668055,5.58,154.82,154.76,4.55470174]
[1729095668350,3.231,154.78,154.76,4.55470174]
[1729095670048,3.231,154.77,154.76,3.16070174]
[1729095670251,3.231,154.77,154.74,3.2315]
[1729095670551,5.58,154.82,154.74,3.17000277]
[1729095670756,24.81,154.81,154.71,6.7315]
[1729095671154,3.2316,154.75,154.71,9.9636]
[1729095671349,3.2316,154.75,154.71,9.89845102]
[1729095671950,3.2316,154.75,154.72,3.232]
[1729095673753,3.2314,154.76,154.71,4.51845102]
[1729095674062,3.2314,154.76,154.73,3.2319]
[1729095674353,1.4075,154.84,154.73,24.81]
[1729095674557,6.7875,154.84,154.81,3.2302]
[1729095674750,1.3219,154.85,154.81,3.2302]
[1729095674751,1.3219,154.85,154.81,3.23156949]
[1729095674945,3.2293,154.86,154.78,24.81]
[1729095675148,27.6582,154.91,154.79,1.395]
[1729095675149,5.38,154.87,154.79,1.395]
[1729095675355,5.38,154.87,154.79,4.58197829]
[1729095675546,3.2295,154.85,154.79,1.395]
[1729095675951,3.2295,154.85,154.81,15.5]
[1729095676352,3.2298,154.83,154.81,15.5]
[1729095677456,3.2298,154.83,154.8,3.2304]
[1729095679753,2.8482,154.91,154.81,15.5]
[1729095679954,5.38,154.9,154.84,15.5]
[1729095680251,5.38,154.9,154.86,15.5]
[1729095680457,8.6084,154.9,154.87,3.2288]
[1729095680757,3.2284,154.9,154.87,3.2288]
[1729095681164,3.2284,154.9,154.87,6.4108142]
[1729095681660,3.2287,154.88,154.87,3.1820142]
[1729095681858,3.2287,154.88,154.84,15.5]
[1729095682158,3.229,154.87,154.84,18.7294]
[1729095682362,5.38,154.93,154.84,15.5]
[1729095682560,5.38,155.0,154.9,15.5]
[1729095682758,2.7634,154.99,154.9,18.80956602]
[1729095682965,15.5,154.98,154.9,3.30956602]
[1729095683259,3.229,154.87,154.83,15.5]
[1729095683465,3.229,154.87,154.82,5.38]
[1729095683661,5.38,154.91,154.82,5.38]
[1729095683969,2.7945,154.9,154.82,5.38]
[1729095684265,27.5945,154.9,154.79,7.81538641]
[1729095684465,27.5945,154.9,154.79,4.58488641]
[1729095684758,3.229,154.87,154.79,4.58488641]
[1729095684967,5.38,154.87,154.8,3.2304]
[1729095685155,5.38,154.87,154.79,4.58488641]
[1729095685765,3.2297,154.84,154.81,3.2301]
[1729095686265,5.38,154.87,154.79,4.58488641]
[1729095686471,3.2294,154.85,154.82,3.2299]
[1729095688167,3.2297,154.84,154.81,3.2301]
[1729095689265,3.2296,154.84,154.81,3.2301]
[1729095690070,5.38,154.87,154.79,29.38488641]
[1729095690564,2.7945,154.9,154.82,24.8]
[1729095691568,5.38,154.91,154.82,30.18]
[1729095691764,3.2286,154.89,154.85,3.2292]
[1729095692665,5.38,154.91,154.85,3.2292]
[1729095692970,3.2288,154.88,154.85,3.2292]
[1729095694368,3.2284,154.9,154.87,3.2289]
[1729095694672,3.2284,154.9,154.87,6.43243351]
[1729095695263,1.4426,154.94,154.87,3.20353351]
[1729095695470,5.38,154.94,154.85,24.8]
[1729095695663,5.38,154.94,154.86,2.7533]
[1729095695867,3.2279,154.93,154.87,24.8]
[1729095696066,3.2279,154.93,154.87,27.96865633]
[1729095696572,5.38,154.95,154.87,27.96865633]
[1729095696770,3.2279,154.92,154.89,3.2284]
[1729095697864,3.2285,154.9,154.87,6.39745633]
[1729095698074,5.38,154.95,154.86,8.1333]
[1729095698460,3.2284,154.9,154.87,3.2288]
[1729095698665,3.2284,154.9,154.87,6.37900847]
[1729095700178,1.4454,154.96,154.87,24.8]
[1729095700367,6.8454,154.96,154.87,29.4199661]
[1729095700672,1.3144,154.98,154.9,24.8]
[1729095700673,5.4,154.97,154.9,24.8]
[1729095700969,24.8,155.03,154.9,30.2]
[1729095700970,26.159,155.03,154.9,30.2]
[1729095701177,26.159,155.03,154.94,3.2273]
[1729095701178,3.2268,154.98,154.94,3.2273]
[1729095702285,5.4,155.01,154.96,3.2269]
[1729095702975,5.4,155.01,154.96,6.46770177]
[1729095703367,3.2266,154.99,154.96,6.46770177]
[1729095705666,3.2267,154.98,154.96,6.46770177]
[1729095706273,5.4,155.02,154.96,3.24080177]
[1729095706472,5.4,155.02,154.93,1.3877]
[1729095707868,15.5,155.01,154.93,1.3877]
[1729095708871,3.2272,154.96,154.93,4.6153]
[1729095709471,3.227,154.97,154.94,3.2274]
[1729095709877,15.5,155.01,154.94,3.2274]
[1729095710068,3.2273,154.95,154.93,4.6154]
[1729095710269,15.5,155.01,154.9,20.9]
[1729095710577,3.2274,154.95,154.92,3.2278]
[1729095711171,19.37,154.92,154.68,4.1306]
[1729095711373,15.5,154.83,154.73,15.5]
[1729095711674,15.5,154.81,154.7,15.5]
[1729095711873,15.5,154.77,154.68,7.36648422]
[1729095712178,5.4,154.76,154.68,7.36648422]
[1729095713479,15.5,154.77,154.68,7.36648422]
[1729095713777,5.4,154.76,154.68,7.36648422]
[1729095713975,5.4,154.75,154.68,7.36648422]
[1729095714176,5.4,154.74,154.68,7.36648422]
[1729095714373,5.4,154.73,154.68,7.36648422]
[1729095714579,24.84,154.79,154.68,7.36648422]
[1729095714783,3.2315,154.75,154.68,10.59938422]
[1729095714971,5.4,154.74,154.68,10.59938422]
[1729095715168,3.2306,154.8,154.72,3.232]
[1729095715378,5.4,154.79,154.72,3.232]
[1729095715779,69.7,154.83,154.72,3.232]
[1729095715780,5.4,154.78,154.72,3.232]
[1729095715973,69.7,154.83,154.72,3.232]
[1729095716176,5.4,154.82,154.72,3.232]
[1729095716376,3.2308,154.79,154.72,3.232]
[1729095716574,5.4,154.78,154.72,3.232]
[1729095718178,69.7,154.83,154.73,24.84]
[1729095718179,8.6302,154.81,154.73,24.84]
[1729095718385,5.4,154.81,154.73,24.84]
[1729095718569,3.2302,154.81,154.75,3.2313]
[1729095718781,5.4,154.8,154.73,24.84]
[1729095719376,5.4,154.8,154.72,3.232]
[1729095719871,3.231,154.78,154.71,24.84]
[1729095720069,5.4,154.8,154.71,24.84]
[1729095720585,5.4,154.8,154.69,3.2326]
[1729095720586,3.2315,154.75,154.69,3.2326]
[1729095720881,5.4,154.76,154.68,7.36648422]
[1729095721985,3.2319,154.73,154.68,7.36648422]
[1729095722687,3.2319,154.73,154.68,10.59938422]
[1729095723384,3.2324,154.71,154.68,7.36648422]
[1729095723579,5.4,154.72,154.68,1.4262]
[1729095724080,5.4,154.72,154.67,3.29866257]
[1729095724279,5.4,154.72,154.64,1.4412]
[1729095724486,3.2328,154.69,154.64,4.6749]
[1729095724685,5.4,154.72,154.64,1.4412]
[1729095725081,5.4,154.72,154.64,4.69816871]
[1729095725283,5.4,154.72,154.64,1.4412]
[1729095725683,3.2329,154.69,154.64,4.6749]
[1729095725885,3.2329,154.69,154.64,7.97323936]
[1729095726581,5.4,154.72,154.64,4.73953936]
[1729095726783,30.24,154.72,154.64,3.29833936]
[1729095727092,24.84,154.72,154.65,3.26642765]
[1729095727385,3.2333,154.66,154.63,1.3219]
[1729095727589,8.6333,154.66,154.63,4.58380128]
[1729095727782,8.6333,154.66,154.63,1.3219]
[1729095727976,8.6333,154.66,154.64,3.28097672]
[1729095728689,5.4,154.66,154.63,1.3219]
[1729095728887,24.84,154.72,154.63,1.3219]
[1729095729085,5.4,154.71,154.63,4.59553652]
[1729095729285,5.4,154.7,154.63,26.1619]
[1729095729582,5.4,154.71,154.67,3.233]
[1729095729784,3.232,154.73,154.63,29.36666891]
[1729095729985,5.62,154.72,154.63,29.36666891]
[1729095730186,3.232,154.73,154.69,3.2326]
[1729095730187,5.62,154.73,154.69,3.2326]
[1729095730491,8.8519,154.73,154.69,3.2326]
[1729095731887,3.2315,154.75,154.67,1.3454]
[1729095732085,5.62,154.76,154.68,24.84]
[1729095732390,26.0258,154.82,154.68,24.84]
[1729095732585,3.2307,154.79,154.7,24.84]
[1729095732786,5.62,154.81,154.71,1.437]
[1729095732988,3.231,154.78,154.74,3.2315]
[1729095733585,5.62,154.77,154.71,4.72972841]
[1729095734090,5.62,154.77,154.71,7.96182841]
[1729095734293,3.2316,154.75,154.71,4.72972841]
[1729095734886,8.8511,154.77,154.71,4.72972841]
[1729095735088,5.62,154.77,154.71,4.72972841]
[1729095736589,24.84,154.8,154.71,4.72972841]
[1729095736781,26.0258,154.82,154.71,4.72972841]
[1729095736987,5.62,154.81,154.71,4.72972841]
[1729095737485,3.231,154.78,154.75,3.2314]
[1729095737686,5.62,154.8,154.75,3.2314]
[1729095739092,3.231,154.77,154.74,3.2316]
[1729095739894,5.62,154.8,154.71,4.72972841]
[1729095740689,24.84,154.79,154.71,4.72972841]
[1729095741288,3.2316,154.75,154.72,3.2321]
[1729095741691,5.62,154.76,154.71,4.72972841]
[1729095742097,69.8,154.83,154.71,4.72972841]
[1729095742098,24.84,154.81,154.71,4.72972841]
[1729095742394,5.62,154.78,154.71,4.72972841]
[1729095742790,5.62,154.78,154.76,3.2311]
[1729095742993,69.8,154.83,154.71,4.72972841]
[1729095743202,78.6499,154.83,154.8,3.2304]
[1729095743498,8.8499,154.83,154.8,3.2304]
[1729095743698,5.62,154.83,154.8,3.2304]
[1729095743893,3.23,154.82,154.8,3.2304]
[1729095744093,3.23,154.82,154.8,6.41186067]
[1729095744394,3.23,154.82,154.79,3.2305]
[1729095744588,3.23,154.82,154.79,6.39386399]
[1729095744793,5.62,154.84,154.79,3.16336399]
[1729095745097,3.2298,154.83,154.8,3.2302]
[1729095749596,3.23,154.82,154.8,3.2302]
[1729095750999,70.8351,154.91,154.79,3.30093785]
[1729095751205,5.62,154.86,154.77,24.84]
[1729095751395,5.62,154.86,154.78,1.367]
[1729095751599,5.62,154.86,154.83,3.2296]
[1729095751797,5.62,154.86,154.83,6.38627331]
[1729095752403,110.39029924,154.94,154.86,3.229]
[1729095752404,24.84,154.93,154.86,3.229]
[1729095752604,5.62,154.93,154.83,27.99667331]
[1729095752806,5.62,154.93,154.84,2.6459]
[1729095753007,5.62,154.93,154.86,3.229]
[1729095753303,5.62,154.96,154.86,30.46]
[1729095753512,24.84,155.0,154.88,24.84]
[1729095753814,5.62,154.99,154.94,3.2273]
[1729095753998,3.2267,154.98,154.9,5.62]
[1729095754303,5.62,154.99,154.9,5.62]
[1729095754698,5.62,154.99,154.95,3.2271]
[1729095754898,5.62,154.99,154.95,3.22846098]
[1729095755103,5.62,154.99,154.9,5.62]
[1729095756198,3.2269,154.97,154.92,3.2278]
[1729095756510,3.2269,154.97,154.9,5.62]
[1729095756813,3.2269,154.97,154.93,3.2276]
[1729095757514,3.2269,154.97,154.94,3.2275]
[1729095757708,24.84,155.02,154.94,3.26267241]
[1729095757900,24.84,155.02,154.91,24.84]
[1729095757901,5.62,155.01,154.91,24.84]
[1729095758215,5.62,155.01,154.95,3.2271]
[1729095758416,5.62,155.01,154.95,6.45426999]
[1729095758602,5.62,155.01,154.95,3.2271]
[1729095758804,3.2266,154.99,154.95,3.2271]
[1729095759213,3.2266,154.99,154.95,6.47750793]
[1729095759603,5.62,155.01,154.95,6.47750793]
[1729095759604,3.2267,154.98,154.95,6.47750793]
[1729095760006,24.84,155.02,154.96,3.2269]
[1729095760309,3.2265,154.99,154.93,1.3378]
[1729095760713,3.2265,154.99,154.95,3.2272]
[1729095761006,3.2262,155.01,154.95,3.27590513]
[1729095761209,24.84,155.05,154.99,3.2264]
[1729095761514,5.5,155.05,154.95,3.16584762]
[1729095761811,5.5,155.05,154.94,5.5]
[1729095762007,5.5,155.05,154.99,3.2264]
[1729095762208,5.5,155.05,154.94,8.79021865]
[1729095763512,5.5,155.05,154.96,24.84]
[1729095763702,3.2257,155.03,154.99,3.2263]
[1729095764215,3.2263,155.0,154.96,24.84]
[1729095764414,5.5,155.06,154.96,24.84]
[1729095765407,3.2259,155.02,154.98,3.2265]
[1729095765804,5.5,155.06,154.96,24.84]
[1729095766205,100.66275014,155.08,154.96,24.84]
[1729095766206,3.2254,155.04,154.96,24.84]
[1729095766811,5.5,155.07,154.96,24.84]
[1729095767316,3.2263,155.0,154.96,8.7269]
[1729095767517,5.5,155.07,154.96,5.5]
[1729095767911,3.2262,155.01,154.97,3.2267]
[1729095768109,5.5,155.03,154.94,8.79021865]
[1729095768305,5.5,155.03,154.94,5.5]
[1729095768814,5.5,155.03,154.94,8.67116681]
[1729095769522,5.5,155.03,154.94,11.89866681]
[1729095769709,30.34,155.03,154.94,3.17116681]
[1729095769909,30.34,155.03,154.9,24.84]
[1729095770118,3.2266,154.99,154.95,3.2271]
[1729095770314,3.2266,154.99,154.95,6.52344869]
[1729095770510,5.5,155.03,154.95,3.29634869]
[1729095770710,5.5,155.03,154.93,5.5]
[1729095770711,3.2262,155.01,154.96,1.4089]
[1729095770919,5.5,155.07,154.97,30.34]
[1729095771220,5.5,155.07,154.97,33.1665]
[1729095771422,3.2255,155.04,154.97,33.1665]
[1729095771719,3.2255,155.04,154.97,36.39414823]
[1729095771919,3.2252,155.05,154.97,36.39414823]
[1729095772647,3.2251,155.06,155.02,3.2257]
[1729095773224,5.5,155.09,155.04,3.2253]
[1729095773822,3.2247,155.08,155.04,3.2253]
[1729095774010,3.2247,155.08,155.05,3.2763565]
[1729095774220,5.5,155.09,155.05,3.2763565]
[1729095774822,3.2246,155.08,155.05,3.2763565]
[1729095775325,3.2248,155.07,155.05,3.2763565]
[1729095775519,3.2248,155.07,155.04,3.2253]
[1729095776221,24.84,155.13,155.02,24.84]
[1729095776425,3.2245,155.09,155.06,3.2249]
[1729095776625,3.2245,155.09,155.06,6.51804479]
[1729095777623,3.2245,155.09,155.06,3.29314479]
[1729095777829,3.2245,155.09,155.02,24.84]
[1729095777830,3.2245,155.09,155.07,3.2248]
[1729095778026,3.2245,155.09,155.07,6.43915267]
[1729095778730,224.0,155.19,155.07,3.21435267]
[1729095779023,224.0,155.19,155.05,30.34]
[1729095779024,5.5,155.16,155.08,1.4007]
[1729095779227,5.5,155.16,155.05,30.34]
[1729095779228,24.84,155.14,155.05,3.25627761]
[1729095779431,24.84,155.14,155.04,5.5]
[1729095779721,3.2247,155.08,155.05,3.2252]
[1729095779929,5.5,155.12,155.05,3.21403017]
[1729095780129,3.2251,155.06,155.03,3.2255]
[1729095780324,24.84,155.11,155.0,5.5]
[1729095780742,24.84,155.11,155.0,30.34]
[1729095780921,5.5,155.12,155.0,30.34]
[1729095781529,5.5,155.12,155.02,24.84]
[1729095781925,5.5,155.13,155.02,24.84]
[1729095782224,3.2242,155.1,155.02,24.84]
[1729095782432,5.5,155.14,155.05,24.84]
[1729095782621,3.2239,155.12,155.09,3.2242]
[1729095783027,5.5,155.14,155.09,3.2242]
[1729095783229,3.224,155.11,155.09,3.2242]
[1729095783423,3.224,155.11,155.08,3.2245]
[1729095783628,3.224,155.11,155.07,1.4263]
[1729095784027,3.224,155.11,155.08,3.2245]
[1729095784428,5.5,155.14,155.07,1.4263]
[1729095784630,3.2243,155.1,155.07,4.651]
[1729095784943,3.2243,155.1,155.07,1.4263]
[1729095785229,3.2238,155.12,155.07,1.4263]
[1729095785635,5.5,155.14,155.09,3.2244]
[1729095785824,5.5,155.14,155.07,1.4263]
[1729095786028,5.5,155.14,155.07,4.651]
[1729095786633,3.2241,155.11,155.08,3.2246]
[1729095787229,3.2241,155.11,155.08,3.2245]
[1729095787837,3.2241,155.11,155.09,3.2243]
[1729095788237,3.2241,155.11,155.07,1.4263]
[1729095788238,3.2241,155.11,155.06,5.5]
[1729095788430,3.2241,155.11,155.06,6.9506]
[1729095788635,3.2239,155.12,155.06,9.7415]
[1729095788845,3.2239,155.12,155.09,3.2243]
[1729095789047,3.2235,155.14,155.08,24.84]
[1729095789246,1.1815,155.2,155.08,24.84]
[1729095789437,5.48,155.19,155.08,24.84]
[1729095789638,3.223,155.16,155.13,3.2235]
[1729095789845,5.4,155.21,155.13,15.47]
[1729095790344,3.2224,155.19,155.16,3.2228]
[1729095790551,5.4,155.21,155.16,3.2228]
[1729095790745,5.4,155.21,155.14,4.1661]
[1729095791143,5.4,155.23,155.14,4.1661]
[1729095791446,20.87,155.24,155.17,3.2227]
[1729095791851,5.4,155.24,155.17,3.2227]
[1729095792238,5.4,155.24,155.14,28.9161]
[1729095792451,5.4,155.24,155.16,3.2228]
[1729095792650,3.2224,155.19,155.16,3.2228]
[1729095793339,3.2227,155.17,155.15,3.223]
[1729095793548,3.2227,155.17,155.14,4.1661]
[1729095794341,5.4,155.24,155.14,4.1661]
[1729095794548,5.4,155.24,155.15,3.223]
[1729095795345,5.4,155.24,155.17,3.2227]
[1729095795556,5.4,155.24,155.14,28.9161]
[1729095795963,3.2221,155.21,155.17,3.2227]
[1729095796156,5.4,155.24,155.17,3.2227]
[1729095796355,5.4,155.24,155.14,28.9161]
[1729095796654,3.2222,155.2,155.17,3.2227]
[1729095797851,3.2225,155.18,155.15,3.223]
[1729095798052,5.4,155.24,155.14,4.1661]
[1729095798358,3.223,155.16,155.14,4.1661]